bitfinex/quotes_SOLUSD_20250212
["timestamp","ask_amount","ask_price","bid_price","bid_amount"]
[1739322878726,9.96845753,197.49,197.48,0.03]
[1739322879425,15.03195753,197.49,197.48,0.03]
[1739322886940,9.96845753,197.49,197.48,0.03]
[1739322887456,9.84296753,197.51,197.48,0.03]
[1739322888245,9.84296753,197.5,197.48,0.03]
[1739322889941,9.90596753,197.52,197.48,0.03]
[1739322890137,0.063,197.52,197.48,0.03]
[1739322890556,9.90596753,197.52,197.48,0.03]
[1739322891657,9.84296753,197.51,197.48,0.03]
[1739322891847,9.84296753,197.49,197.48,0.03]
[1739322892259,9.84296753,197.5,197.48,0.03]
[1739322892851,9.84296753,197.51,197.48,0.03]
[1739322893380,9.84296753,197.49,197.48,0.03]
[1739322894163,14.90646753,197.49,197.48,0.03]
[1739322895263,9.84296753,197.5,197.48,0.03]
[1739322895654,14.90596753,197.51,197.48,0.03]
[1739322896368,0.063,197.49,197.48,0.03]
[1739322901361,0.063,197.49,197.48,9.87296753]
[1739322901551,0.063,197.49,197.48,11.41826753]
[1739322901959,0.063,197.49,197.48,24.83011606]
[1739322902661,0.063,197.49,197.48,11.41826753]
[1739322902857,0.063,197.49,197.48,16.48206753]
[1739322903262,0.063,197.49,197.48,11.41826753]
[1739322903882,0.063,197.49,197.48,1.5753]
[1739322904173,0.063,197.49,197.48,11.41826753]
[1739322904760,0.063,197.49,197.48,16.48206753]
[1739322905461,0.063,197.49,197.48,11.41826753]
[1739322905669,0.063,197.49,197.48,1.5753]
[1739322906558,0.063,197.49,197.48,11.41826753]
[1739322907162,0.063,197.49,197.48,1.5753]
[1739322907676,0.063,197.49,197.48,11.41826753]
[1739322908167,0.063,197.49,197.48,1.5753]
[1739322909181,0.063,197.49,197.48,0.03]
[1739322913281,9.90596753,197.49,197.48,0.03]
[1739322913463,15.09495753,197.49,197.48,0.03]
[1739322914977,0.063,197.49,197.48,0.03]
[1739322915366,10.03145753,197.49,197.48,0.03]
[1739322915689,15.09495753,197.49,197.48,0.03]
[1739322916388,28.63229606,197.49,197.48,0.03]
[1739322918675,30.18219606,197.49,197.48,0.03]
[1739322919191,14.66282853,197.48,197.41,0.03]
[1739322919359,10.09394753,197.42,197.41,0.03]
[1739322922269,15.15924753,197.42,197.41,0.03]
[1739322922481,10.09394753,197.42,197.41,0.03]
[1739322923669,9.84296753,197.44,197.41,0.03]
[1739322923869,9.96845753,197.43,197.41,0.03]
[1739322924394,9.84296753,197.42,197.41,0.03]
[1739322928176,151.6718,197.49,197.41,0.03]
[1739322928177,9.84296753,197.46,197.41,0.03]
[1739322928396,0.25098,197.47,197.41,9.87296753]
[1739322928970,10.09394753,197.47,197.41,9.87296753]
[1739322929204,0.12549,197.45,197.41,0.03]
[1739322929700,9.84296753,197.44,197.41,0.03]
[1739322931079,0.25098,197.43,197.41,0.03]
[1739322931378,9.84296753,197.44,197.41,0.03]
[1739322931379,10.09394753,197.42,197.41,0.03]
[1739322932805,23.50579606,197.42,197.41,0.03]
[1739322932978,28.57109606,197.42,197.41,0.03]
[1739322934410,34.84299606,197.42,197.41,0.03]
[1739322934588,21.43114753,197.42,197.41,0.03]
[1739322935804,27.02002666,197.42,197.41,0.03]
[1739322936399,40.43187519,197.42,197.41,0.03]
[1739322938504,15.68282666,197.42,197.41,0.03]
[1739322939607,15.43184666,197.42,197.41,0.03]
[1739322939906,106.4,197.43,197.41,0.03]
[1739322940105,19.68374853,197.48,197.41,0.03]
[1739322940106,15.43184666,197.45,197.41,0.03]
[1739322940404,0.12549,197.43,197.41,0.03]
[1739322940710,15.55733666,197.43,197.41,0.03]
[1739322940917,15.55733666,197.42,197.41,0.03]
[1739322941789,0.12549,197.42,197.41,0.03]
[1739322942527,15.43184666,197.46,197.41,0.03]
[1739322944007,15.55733666,197.47,197.41,0.03]
[1739322944201,0.12549,197.47,197.41,15.46184666]
[1739322945805,0.063,197.48,197.43,15.43184666]
[1739322945999,0.063,197.48,197.44,15.43184666]
[1739322947933,0.063,197.48,197.44,20.49654666]
[1739322949516,0.063,197.48,197.43,15.43184666]
[1739322950408,15.43184666,197.47,197.41,0.03]
[1739322950720,15.49484666,197.48,197.41,20.52734666]
[1739322953033,15.43184666,197.47,197.41,5.0955]
[1739322953413,15.43184666,197.47,197.41,0.03]
[1739322953628,20.49594666,197.47,197.41,0.03]
[1739322954008,15.43184666,197.46,197.41,0.03]
[1739322954321,15.43184666,197.45,197.41,0.03]
[1739322955721,9.86906791,197.45,197.41,0.03]
[1739322956835,9.86906791,197.47,197.41,0.03]
[1739322957717,9.86906791,197.47,197.41,5.0955]
[1739322958449,10.05755791,197.48,197.41,14.96456791]
[1739322961843,0.063,197.48,197.45,9.86906791]
[1739322962017,0.063,197.48,197.44,9.86906791]
[1739322962217,0.063,197.48,197.43,9.86906791]
[1739322963241,0.063,197.48,197.43,14.93396791]
[1739322963834,0.063,197.48,197.45,9.86906791]
[1739322964059,0.063,197.48,197.44,9.86906791]
[1739322964351,0.063,197.48,197.43,14.93396791]
[1739322965637,0.063,197.48,197.44,9.86906791]
[1739322966036,0.063,197.48,197.45,5.0645]
[1739322966648,0.063,197.48,197.45,14.93356791]
[1739322966826,0.063,197.48,197.47,9.86906791]
[1739322967956,0.063,197.48,197.47,5.064]
[1739322968541,0.063,197.48,197.47,14.93306791]
[1739322970662,0.063,197.48,197.47,15.93306791]
[1739322970836,0.063,197.49,197.48,14.41184853]
[1739322971040,0.063,197.49,197.48,26.0401166]
[1739322971550,0.063,197.49,197.48,24.28091644]
[1739322972860,0.063,197.49,197.48,29.34471644]
[1739322973658,0.063,197.49,197.48,30.34471644]
[1739322974155,0.063,197.52,197.51,43.34134853]
[1739322974346,0.063,197.52,197.51,52.21041644]
[1739322974861,0.063,197.52,197.51,53.96955568]
[1739322975359,0.063,197.52,197.51,52.21041644]
[1739322976235,0.063,197.57,197.56,9.86906791]
[1739322976663,0.063,197.57,197.55,9.86906791]
[1739322976868,0.063,197.57,197.54,9.86906791]
[1739322978475,0.063,197.57,197.54,14.93126791]
[1739322979570,0.063,197.57,197.53,9.86906791]
[1739322979780,0.063,197.57,197.51,34.93196791]
[1739322980071,9.86906791,197.55,197.51,20.0]
[1739322980576,9.86906791,197.55,197.48,9.86906791]
[1739322980778,9.86906791,197.53,197.5,20.0]
[1739322981376,9.86906791,197.53,197.47,5.0638]
[1739322981771,9.86906791,197.53,197.51,0.03]
[1739322983075,1.6383,197.56,197.51,0.03]
[1739322983274,0.063,197.57,197.52,9.86906791]
[1739322983461,0.063,197.57,197.53,9.86906791]
[1739322984168,0.063,197.57,197.52,9.86906791]
[1739322984868,9.93206791,197.57,197.51,0.03]
[1739322985257,9.86906791,197.56,197.51,0.03]
[1739322985664,15.40384391,197.56,197.51,0.03]
[1739322985859,15.59233391,197.57,197.51,0.03]
[1739322986571,0.063,197.57,197.51,15.43384391]
[1739322986779,0.063,197.57,197.52,15.40384391]
[1739322986955,0.063,197.57,197.54,15.40384391]
[1739322987978,0.063,197.57,197.54,20.46604391]
[1739322989476,0.063,197.57,197.53,15.40384391]
[1739322989660,0.063,197.57,197.52,15.40384391]
[1739322990379,15.40384391,197.56,197.51,0.03]
[1739322991684,15.40384391,197.54,197.51,0.03]
[1739322992355,15.40384391,197.55,197.51,0.03]
[1739322993458,15.40384391,197.54,197.51,0.03]
[1739322994174,15.40384391,197.53,197.51,0.03]
[1739322997675,15.40384391,197.52,197.51,0.03]
[1739322998690,20.46654391,197.52,197.51,0.03]
[1739323001279,20.59203391,197.52,197.51,0.03]
[1739323005595,15.0523156,197.52,197.51,0.03]
[1739323007691,9.8641256,197.52,197.51,0.03]
[1739323007894,14.9266256,197.53,197.51,0.03]
[1739323008593,9.8641256,197.52,197.51,0.03]
[1739323008790,14.9268256,197.52,197.51,0.03]
[1739323009197,15.0523156,197.52,197.51,0.03]
[1739323010793,54.508818,197.52,197.51,0.03]
[1739323011093,20.12723853,197.51,197.41,0.03]
[1739323011294,9.8641256,197.44,197.41,0.03]
[1739323011881,9.8641256,197.42,197.41,0.03]
[1739323012279,9.9896156,197.42,197.41,0.03]
[1739323012595,16.5795156,197.42,197.41,0.03]
[1739323012803,16.5795156,197.42,197.37,4.80024005]
[1739323012985,16.5795156,197.42,197.31,15.73507403]
[1739323012986,9.8641256,197.38,197.32,4.80024005]
[1739323013188,9.8641256,197.37,197.32,4.80024005]
[1739323014206,9.8641256,197.35,197.32,4.80024005]
[1739323014384,9.8641256,197.34,197.32,4.80024005]
[1739323014580,9.8641256,197.33,197.32,4.80024005]
[1739323014899,9.8641256,197.34,197.32,4.80024005]
[1739323015486,9.8641256,197.34,197.31,0.03]
[1739323017605,15.44079164,197.33,197.31,0.03]
[1739323018608,0.12549,197.36,197.31,0.03]
[1739323018781,15.44079164,197.32,197.31,0.03]
[1739323020287,15.44079164,197.34,197.31,0.03]
[1739323020480,15.44079164,197.32,197.31,0.03]
[1739323022283,20.75967164,197.32,197.31,0.03]
[1739323022789,15.69177164,197.32,197.31,0.03]
[1739323025107,15.44079164,197.32,197.31,0.03]
[1739323025820,16.99841098,197.34,197.31,0.03]
[1739323025986,15.44079164,197.32,197.31,0.03]
[1739323028091,32.43920262,197.34,197.31,0.03]
[1739323028317,15.44079164,197.32,197.31,0.03]
[1739323028995,15.44079164,197.33,197.31,0.03]
[1739323029592,32.43920262,197.34,197.31,0.03]
[1739323029915,16.99841098,197.34,197.31,0.03]
[1739323031296,16.99841098,197.34,197.33,15.44079164]
[1739323031821,16.99841098,197.34,197.32,15.44079164]
[1739323032111,16.99841098,197.34,197.33,5.0676]
[1739323033013,16.99841098,197.34,197.31,5.0979]
[1739323033210,16.99841098,197.34,197.31,0.03]
[1739323033522,16.99841098,197.34,197.31,5.0981]
[1739323035201,16.99841098,197.34,197.31,0.03]
[1739323037895,32.43920262,197.34,197.31,0.03]
[1739323038414,15.44079164,197.33,197.31,0.03]
[1739323039616,9.8820994,197.33,197.31,0.03]
[1739323039994,16.99841098,197.34,197.31,0.03]
[1739323040215,16.99841098,197.34,197.31,9.9120994]
[1739323040712,16.99841098,197.34,197.32,9.8820994]
[1739323042000,16.99841098,197.34,197.33,14.9496994]
[1739323044302,0.063,197.37,197.33,14.9496994]
[1739323044620,0.063,197.37,197.34,9.8820994]
[1739323045013,0.063,197.37,197.35,9.8820994]
[1739323046311,0.063,197.37,197.33,14.9496994]
[1739323046511,0.063,197.37,197.34,9.8820994]
[1739323047322,0.063,197.37,197.34,14.9493994]
[1739323047524,0.063,197.37,197.36,9.8820994]
[1739323049318,0.063,197.37,197.36,14.9488994]
[1739323049616,0.063,197.37,197.36,37.7774994]
[1739323049617,0.0001,197.37,197.36,37.7774994]
[1739323049818,0.0001,197.37,197.36,39.3568994]
[1739323052702,0.0001,197.37,197.36,37.09524793]
[1739323052908,15.30640341,197.45,197.36,37.09524793]
[1739323053210,15.30640341,197.45,197.41,9.8820994]
[1739323054029,15.30640341,197.45,197.43,9.8820994]
[1739323056431,15.30640341,197.45,197.42,9.8820994]
[1739323057205,15.30640341,197.45,197.41,29.8820994]
[1739323057405,15.30640341,197.45,197.42,9.8820994]
[1739323058041,15.30640341,197.45,197.41,9.8820994]
[1739323058323,20.37100341,197.45,197.41,20.0]
[1739323058574,9.8820994,197.43,197.36,9.8820994]
[1739323058822,9.8820994,197.39,197.33,9.8820994]
[1739323059032,9.8820994,197.39,197.32,9.8820994]
[1739323060002,14.9481994,197.39,197.32,9.8820994]
[1739323060224,9.8820994,197.38,197.31,9.9120994]
[1739323060428,9.8820994,197.37,197.31,9.9120994]
[1739323060925,9.8820994,197.37,197.31,0.03]
[1739323061723,9.8820994,197.37,197.31,9.9120994]
[1739323062229,14.9486994,197.37,197.31,9.9120994]
[1739323062533,9.8820994,197.35,197.31,0.03]
[1739323062737,9.8820994,197.34,197.31,0.03]
[1739323065440,9.8820994,197.36,197.31,0.03]
[1739323065823,9.8820994,197.35,197.31,0.03]
[1739323066023,9.8820994,197.34,197.31,0.03]
[1739323066436,9.8820994,197.35,197.31,0.03]
[1739323066631,9.8820994,197.36,197.31,0.03]
[1739323067048,1.6126,197.37,197.31,9.9120994]
[1739323067248,0.063,197.37,197.31,9.9120994]
[1739323067742,9.8820994,197.36,197.31,0.03]
[1739323068338,0.063,197.37,197.31,0.03]
[1739323068339,9.8820994,197.35,197.31,0.03]
[1739323069025,9.8820994,197.36,197.31,0.03]
[1739323069749,15.0116994,197.37,197.31,0.03]
[1739323070236,15.0116994,197.37,197.31,9.9120994]
[1739323070430,15.0116994,197.37,197.31,0.03]
[1739323070736,9.8820994,197.36,197.31,0.03]
[1739323071436,14.9490994,197.36,197.31,0.03]
[1739323072022,9.8820994,197.35,197.31,0.03]
[1739323072234,9.8820994,197.34,197.31,0.03]
[1739323073234,14.9494994,197.34,197.31,0.03]
[1739323074744,9.8820994,197.34,197.31,0.03]
[1739323074934,9.8820994,197.35,197.31,0.03]
[1739323075133,9.8820994,197.36,197.31,0.03]
[1739323076253,14.9489994,197.36,197.31,0.03]
[1739323076454,9.8820994,197.35,197.31,0.03]
[1739323077434,14.9489994,197.36,197.31,0.03]
[1739323077847,5.0669,197.36,197.31,0.03]
[1739323078142,15.0116994,197.37,197.31,0.03]
[1739323081477,0.063,197.37,197.31,0.03]
[1739323081763,0.063,197.37,197.36,9.8820994]
[1739323083736,0.063,197.37,197.36,14.9488994]
[1739323083933,0.063,197.37,197.36,16.5387994]
[1739323088046,0.063,197.37,197.36,9.8820994]
[1739323088242,0.063,197.37,197.36,20.0]
[1739323088944,0.063,197.37,197.34,9.8820994]
[1739323090646,9.9450994,197.37,197.31,5.0979]
[1739323090834,9.9450994,197.37,197.31,0.03]
[1739323091041,9.9450994,197.37,197.31,5.0981]
[1739323091341,9.9450994,197.37,197.31,14.9801994]
[1739323092566,0.063,197.37,197.32,9.8820994]
[1739323092766,0.063,197.37,197.35,9.8820994]
[1739323093145,0.063,197.37,197.34,29.8820994]
[1739323093339,0.063,197.37,197.34,20.0]
[1739323093644,0.063,197.37,197.31,20.53191104]
[1739323093845,15.49681104,197.37,197.31,5.0981]
[1739323094653,15.49681104,197.37,197.33,15.43381104]
[1739323094654,0.063,197.37,197.33,15.43381104]
[1739323094854,0.063,197.37,197.34,15.43381104]
[1739323095666,0.063,197.37,197.33,15.43381104]
[1739323095965,0.063,197.37,197.34,15.43381104]
[1739323096373,0.063,197.37,197.35,5.0671]
[1739323096968,0.063,197.37,197.33,15.43381104]
[1739323098672,0.063,197.37,197.35,15.43381104]
[1739323099260,0.063,197.37,197.36,35.43381104]
[1739323100270,0.063,197.37,197.33,15.43381104]
[1739323100457,0.063,197.37,197.33,20.50141104]
[1739323101269,0.063,197.37,197.32,20.50171104]
[1739323102764,0.063,197.37,197.33,15.43381104]
[1739323104451,0.063,197.37,197.34,15.43381104]
[1739323105051,0.063,197.37,197.33,5.0675]
[1739323105052,0.063,197.37,197.36,15.43381104]
[1739323105856,0.063,197.37,197.36,35.43381104]
[1739323106677,0.063,197.37,197.34,20.50101104]
[1739323106882,0.063,197.37,197.35,15.43381104]
[1739323108867,0.063,197.37,197.36,5.0668]
[1739323111485,0.063,197.37,197.35,15.43381104]
[1739323111657,0.063,197.37,197.35,20.50091104]
[1739323111858,0.063,197.37,197.35,15.43381104]
[1739323112053,0.063,197.37,197.34,20.53111104]
[1739323112570,0.063,197.37,197.34,0.03]
[1739323112761,15.43381104,197.36,197.34,0.03]
[1739323114271,20.50061104,197.36,197.34,0.03]
[1739323115681,9.88019105,197.35,197.34,0.03]
[1739323117562,14.94729105,197.35,197.34,0.03]
[1739323120681,14.94729105,197.35,197.34,0.0001]
[1739323120891,21.58239105,197.35,197.34,0.0001]
[1739323121298,35.11972958,197.35,197.34,0.0001]
[1739323121474,35.24521958,197.35,197.34,0.0001]
[1739323122789,36.53482354,197.35,197.34,0.0001]
[1739323123498,35.24521958,197.35,197.34,0.0001]
[1739323127990,21.58239105,197.35,197.34,0.0001]
[1739323128306,14.94729105,197.35,197.34,0.0001]
[1739323128490,15.07278105,197.35,197.34,0.0001]
[1739323129612,15.19827105,197.35,197.34,0.0001]
[1739323130912,14.94709105,197.36,197.34,0.0001]
[1739323131086,5.0669,197.36,197.34,0.0001]
[1739323131598,15.00979105,197.37,197.34,0.0001]
[1739323132409,0.063,197.37,197.34,0.0001]
[1739323132899,0.063,197.37,197.34,9.88029105]
[1739323133226,0.063,197.37,197.36,9.88019105]
[1739323133890,0.063,197.37,197.36,14.94699105]
[1739323134299,0.063,197.37,197.36,9.88019105]
[1739323135110,0.063,197.37,197.36,14.94699105]
[1739323138717,0.063,197.37,197.36,28.35883958]
[1739323140051,0.063,197.37,197.36,9.88019105]
[1739323141309,0.063,197.37,197.35,31.51039105]
[1739323141512,0.063,197.37,197.36,9.88019105]
[1739323142151,0.063,197.37,197.36,14.94699105]
[1739323142647,0.063,197.37,197.36,28.35883958]
[1739323142848,0.063,197.37,197.36,29.35883958]
[1739323143944,0.063,197.37,197.36,28.35883958]
[1739323144547,0.063,197.37,197.36,30.5984977]
[1739323144719,0.063,197.37,197.36,31.8494777]
[1739323146623,0.063,197.37,197.36,30.60981958]
[1739323146848,0.063,197.37,197.36,111.50981958]
[1739323147746,0.063,197.37,197.36,112.75950066]
[1739323148936,0.0001,197.37,197.36,113.01048066]
[1739323150554,0.0001,197.37,197.36,109.25883958]
[1739323151254,0.0001,197.37,197.36,110.25883958]
[1739323151930,0.0001,197.37,197.36,109.25883958]
[1739323155959,0.0001,197.37,197.36,95.84699105]
[1739323156260,0.0001,197.37,197.36,90.78019105]
[1739323156464,0.0001,197.37,197.36,80.9]
[1739323157639,0.0001,197.37,197.35,14.94729105]
[1739323157640,0.0001,197.37,197.35,9.88019105]
[1739323157847,0.0001,197.37,197.34,14.94759105]
[1739323158052,0.0001,197.37,197.34,9.88029105]
[1739323158435,0.0001,197.37,197.35,9.88019105]
[1739323159768,0.0001,197.37,197.36,9.88019105]
[1739323160430,0.0001,197.37,197.36,23.29203958]
[1739323160738,0.0001,197.37,197.36,106.20269621]
[1739323160943,0.0001,197.37,197.36,105.44301958]
[1739323161838,0.0001,197.37,197.36,110.50981958]
[1739323162258,0.0001,197.37,197.36,111.50981958]
[1739323162457,15.30640341,197.45,197.44,9.88019105]
[1739323164253,15.30640341,197.45,197.42,9.88019105]
[1739323167750,15.30640341,197.45,197.43,9.88019105]
[1739323169671,15.36940341,197.45,197.43,9.88019105]
[1739323172762,0.063,197.45,197.43,9.88019105]
[1739323174663,0.063,197.45,197.44,9.88019105]
[1739323176159,0.063,197.45,197.44,14.94499105]
[1739323177565,0.063,197.45,197.44,9.88019105]
[1739323179860,0.063,197.45,197.43,9.88019105]
[1739323180168,0.063,197.45,197.44,9.88019105]
[1739323183666,0.063,197.45,197.43,9.88019105]
[1739323185770,0.063,197.45,197.43,14.94509105]
[1739323185986,0.063,197.45,197.44,9.88019105]
[1739323186775,0.063,197.45,197.44,14.94499105]
[1739323194955,0.063,197.45,197.44,9.88019105]
[1739323195161,0.063,197.45,197.43,9.88019105]
[1739323195663,0.063,197.45,197.44,29.88019105]
[1739323196273,0.063,197.45,197.43,9.88019105]
[1739323198292,0.063,197.45,197.43,14.94519105]
[1739323199079,0.063,197.45,197.43,9.88019105]
[1739323200475,0.063,197.45,197.43,14.94509105]
[1739323202482,0.063,197.45,197.43,9.88019105]
[1739323203287,0.063,197.45,197.42,9.88019105]
[1739323203995,0.063,197.45,197.41,9.88019105]
[1739323204301,0.063,197.45,197.4,80.9]
[1739323204302,9.94319105,197.45,197.4,80.9]
[1739323205292,9.88019105,197.42,197.37,0.03]
[1739323205495,9.88019105,197.41,197.37,0.03]
[1739323205793,9.88019105,197.43,197.37,0.03]
[1739323205994,14.94499105,197.44,197.37,9.91019105]
[1739323206183,0.063,197.45,197.4,9.88019105]
[1739323206588,0.063,197.45,197.41,9.88019105]
[1739323206892,0.063,197.45,197.44,9.88019105]
[1739323207483,0.063,197.45,197.43,9.88019105]
[1739323212104,0.063,197.45,197.44,9.88019105]
[1739323212597,0.063,197.45,197.44,105.9514907]
[1739323212789,0.063,197.45,197.44,105.44301958]
[1739323213977,22.18272746,197.56,197.48,21.0]
[1739323214185,22.18272746,197.56,197.54,9.88019105]
[1739323215089,22.18272746,197.56,197.55,9.88019105]
[1739323215401,22.18272746,197.56,197.54,9.88019105]
[1739323215603,22.18272746,197.56,197.53,9.88019105]
[1739323215983,22.18272746,197.56,197.54,9.88019105]
[1739323216715,22.18272746,197.56,197.55,9.88019105]
[1739323217202,22.18272746,197.56,197.55,23.29203958]
[1739323217503,0.063,197.63,197.62,20.0]
[1739323217703,0.063,197.63,197.62,34.17064078]
[1739323218008,0.063,197.63,197.62,39.23084078]
[1739323218888,0.063,197.63,197.62,49.11103183]
[1739323219702,0.063,197.63,197.62,54.61059703]
[1739323220003,0.063,197.63,197.62,53.85180478]
[1739323222409,0.063,197.63,197.62,55.86148427]
[1739323222592,0.063,197.63,197.62,54.86148427]
[1739323222794,0.063,197.63,197.62,135.76148427]
[1739323223004,0.063,197.63,197.62,135.00278478]
[1739323223387,0.063,197.63,197.62,134.75180478]
[1739323224508,0.063,197.63,197.62,129.69160478]
[1739323225888,0.063,197.63,197.62,100.9]
[1739323227296,0.063,197.63,197.62,116.27975625]
[1739323228992,0.063,197.63,197.62,100.9]
[1739323229913,0.063,197.63,197.59,80.9]
[1739323230099,15.44275625,197.63,197.59,80.9]
[1739323230295,15.37975625,197.62,197.59,80.9]
[1739323230505,19.17975625,197.61,197.54,96.30975625]
[1739323230711,15.37975625,197.6,197.54,80.93]
[1739323230924,15.37975625,197.59,197.54,80.93]
[1739323231096,15.37975625,197.56,197.54,0.03]
[1739323231418,15.37975625,197.55,197.54,0.03]
[1739323231793,15.37975625,197.56,197.54,0.03]
[1739323231992,15.37975625,197.57,197.54,0.03]
[1739323232591,15.37975625,197.58,197.54,0.03]
[1739323233112,17.02675625,197.62,197.56,15.37975625]
[1739323233290,1.647,197.62,197.56,15.37975625]
[1739323233597,1.647,197.62,197.58,15.37975625]
[1739323233915,6.2902,197.63,197.59,15.37975625]
[1739323234627,0.063,197.63,197.61,15.37975625]
[1739323235511,0.063,197.63,197.6,15.37975625]
[1739323236118,0.063,197.63,197.61,15.37975625]
[1739323236418,0.063,197.63,197.62,15.37975625]
[1739323237207,0.063,197.63,197.62,28.79160478]
[1739323237907,0.063,197.63,197.62,33.85180478]
[1739323238537,0.063,197.63,197.62,15.37975625]
[1739323239908,0.063,197.63,197.62,28.79160478]
[1739323240112,0.063,197.63,197.62,114.75180478]
[1739323240941,0.063,197.63,197.62,96.27975625]
[1739323241239,0.063,197.63,197.62,101.33995625]
[1739323241630,0.063,197.63,197.62,96.27975625]
[1739323242432,0.063,197.63,197.62,80.9]
[1739323242642,0.063,197.63,197.58,15.37975625]
[1739323243029,0.063,197.63,197.59,35.37975625]
[1739323244355,0.063,197.63,197.6,15.37975625]
[1739323244722,0.063,197.63,197.58,15.37975625]
[1739323244922,15.37975625,197.62,197.56,15.37975625]
[1739323245145,15.37975625,197.59,197.54,0.03]
[1739323245335,1.5069,197.62,197.54,0.03]
[1739323245336,15.37975625,197.58,197.54,0.03]
[1739323245535,15.37975625,197.59,197.54,0.03]
[1739323245733,15.37975625,197.6,197.54,0.03]
[1739323246757,5.0612,197.58,197.54,0.03]
[1739323247162,20.44095625,197.58,197.54,0.03]
[1739323247330,5.0612,197.58,197.54,0.03]
[1739323247865,20.44095625,197.58,197.54,0.03]
[1739323249836,15.37975625,197.57,197.54,0.03]
[1739323250032,15.37975625,197.56,197.54,0.03]
[1739323250449,15.37975625,197.58,197.54,0.03]
[1739323250653,15.37975625,197.57,197.54,0.03]
[1739323251167,20.44125625,197.57,197.54,0.03]
[1739323251370,15.37975625,197.56,197.54,0.03]
[1739323253255,15.37975625,197.58,197.54,0.03]
[1739323254570,20.44115625,197.58,197.54,0.03]
[1739323254746,15.37975625,197.56,197.54,0.03]
[1739323254951,15.37975625,197.55,197.54,0.03]
[1739323255265,21.63305625,197.55,197.54,0.03]
[1739323256554,26.69505625,197.55,197.54,0.03]
[1739323257657,15.37975625,197.6,197.54,0.03]
[1739323257658,15.37975625,197.57,197.54,0.03]
[1739323257860,15.37975625,197.58,197.54,0.03]
[1739323258063,20.44105625,197.58,197.54,0.03]
[1739323258251,15.37975625,197.57,197.54,0.03]
[1739323259461,20.44145625,197.57,197.54,0.03]
[1739323260369,15.37975625,197.56,197.54,0.03]
[1739323260551,15.37975625,197.55,197.54,0.03]
[1739323261750,20.44175625,197.55,197.54,0.03]
[1739323261945,5.062,197.55,197.54,0.03]
[1739323262357,20.44175625,197.55,197.54,0.03]
[1739323263441,1.6502,197.54,197.42,15.37975625]
[1739323263754,20.44355625,197.48,197.41,20.44515625]
[1739323264159,5.0638,197.48,197.41,20.44515625]
[1739323265254,20.44325625,197.49,197.42,15.37975625]
[1739323266266,20.44325625,197.49,197.42,20.44505625]
[1739323266468,20.44325625,197.49,197.42,15.37975625]
[1739323266863,20.44325625,197.49,197.42,20.44495625]
[1739323266864,15.37975625,197.49,197.42,20.44495625]
[1739323267043,15.37975625,197.51,197.44,15.37975625]
[1739323267246,3.8,197.5,197.44,15.37975625]
[1739323267453,19.17975625,197.5,197.43,15.37975625]
[1739323268260,24.24305625,197.5,197.43,20.44475625]
[1739323268566,20.44305625,197.5,197.43,20.44475625]
[1739323268781,15.37975625,197.49,197.42,15.37975625]
[1739323268971,19.17975625,197.48,197.41,20.44505625]
[1739323269173,15.37975625,197.48,197.41,20.44505625]
[1739323269551,15.37975625,197.49,197.42,15.37975625]
[1739323269747,3.8,197.48,197.43,15.37975625]
[1739323269969,20.44325625,197.49,197.42,15.37975625]
[1739323270567,15.37975625,197.47,197.4,101.34555625]
[1739323270972,15.37975625,197.48,197.41,15.37975625]
[1739323271151,3.8,197.47,197.41,15.37975625]
[1739323271675,3.8,197.47,197.41,20.44525625]
[1739323271866,15.37975625,197.5,197.43,15.37975625]
[1739323272361,15.37975625,197.49,197.42,15.37975625]
[1739323272568,15.37975625,197.48,197.41,20.44525625]